Workbook

Sheet Template
A1: Show/Hide
A2: Actions
A4: Company Name: | E4: Status | F4: Helpful Websites
A5: Ticker | B5: =_FV(B4,"Ticker symbol",TRUE) -> KO | F5: SEC.gov | Company Search Page
A6: Valuation Date: | B6: 2020-12-29 | E6: Sell | F6: Dividend History | Payout Calendar, Announcements and Stock Information
A7: Valuation Period: | B7: 2020-09-25 | F7: https://finance.yahoo.com/?guccounter=1
A8: Current Price: | B8: =_FV(B4,"Price") -> 54.14 | F8: https://www.msn.com/en-us/money/markets/marketmovers
A9: Market Cap: | B9: =_FV(B4,"Market cap",TRUE) -> 232749100000
A11: Indicators | B11: Net-Net | C11: =IF(B53>B8, "Yes", "No") -> No | D11: Graham Value | E11: =IF(B54>B8, "Yes", "No") -> No | F11: DCF | G11: =IF(B97>B8, "Yes", "No") -> No
B13: =C13+1 -> 2019 | C13: 2018 | D13: 2017 | E13: 2016 | F13: 2015
A14: Stock Info
A15: Diluted Shares OS: | B15: 4314000000 | C15: 4299000000 | D15: 4324000000 | E15: 4367000000 | F15: 4405000000
A16: Closing Share Price | B16: 53.32 | C16: 46.94 | D16: 45.91 | E16: 41.5 | F16: 42.34
A17: EPDS | B17: 2.07 | C17: 1.5 | D17: 0.29 | E17: 1.49 | F17: 1.67
A19: Balance Sheet | B19: In Millions | C19: In Millions | D19: In Millions | E19: In Millions | F19: In Millions
A20: Cash | B20: 6480 | C20: 9077 | D20: 6006 | E20: 8555 | F20: 7309
A21: Marketable Securities | B21: 3228 | C21: 5013 | D21: 5317 | E21: 4051 | F21: 4269
A22: Accounts Receivable | B22: 3971 | C22: 3685 | D22: 3667 | E22: 3856 | F22: 3941
A23: Inventory | B23: 3379 | C23: 3071 | D23: 2655 | E23: 2675 | F23: 2902
A24: Current Assets | B24: 20411 | C24: 24930 | D24: 36545 | E24: 34010 | F24: 33395
A25: Total Assets | B25: 86381 | C25: 83216 | D25: 87896 | E25: 87270 | F25: 90093
A26: Current Liabilities | B26: 26973 | C26: 28782 | D26: 27194 | E26: 26532 | F26: 26930
A27: Total Liabilities | B27: =86381-21098 -> 65283 | C27: =83216-19058 -> 64158 | D27: =87896-18977 -> 68919 | E27: =87270-23220 -> 64050 | F27: =90093-25764 -> 64329
A29: Income Statement | B29: In Millions | C29: In Millions | D29: In Millions | E29: In Millions | F29: In Millions
A30: Revenue | B30: 37266 | C30: 34300 | D30: 36212 | E30: 41863 | F30: 44294
A31: Cost of Goods Sold | B31: 14619 | C31: 13067 | D31: 13721 | E31: 16465 | F31: 17482
A32: Interest Expense | B32: 946 | C32: 950 | D32: 853 | E32: 733 | F32: 856
A33: SG&A | B33: 12103 | C33: 11002 | D33: 12834 | E33: 15262 | F33: 16427
A34: Net Income | B34: 8985 | C34: 6476 | D34: 1283 | E34: 6550 | F34: 7366
A36: Cash Flow | B36: In Millions | C36: In Millions | D36: In Millions | E36: In Millions | F36: In Millions
A37: Operating Cash Flow | B37: 10471 | C37: 7627 | D37: 7041 | E37: 8796 | F37: 10528
A38: PPE Purchases | B38: 2054 | C38: 1548 | D38: 1750 | E38: 2262 | F38: 2553
A39: Debt Payments | B39: 24850 | C39: 30600 | D39: 28871 | E39: 25615 | F39: 37738
A40: Dividends / Share | B40: =0.4*4 -> 1.6 | C40: =0.39*4 -> 1.56 | D40: =0.37*4 -> 1.48 | E40: =0.35*4 -> 1.4 | F40: =0.33*4 -> 1.32
A42: Ratios
A43: P/E | B43: =_xlfn.LET(_xlpm.mult,_xlfn.SWITCH(B29, "In Millions", 1000000, "In Thousands", 1000, 1), B16/((_xlpm.mult*B34)/B15)) -> 25.6007212 | C43: =_xlfn.LET(_xlpm.mult,_xlfn.SWITCH(C29, "In Millions", 1000000, "In Thousands", 1000, 1), C16/((_xlpm.mult*C34)/C15)) -> 31.16044781 | D43: =_xlfn.LET(_xlpm.mult,_xlfn.SWITCH(D29, "In Millions", 1000000, "In Thousands", 1000, 1), D16/((_xlpm.mult*D34)/D15)) -> 154.7270772 | E43: =_xlfn.LET(_xlpm.mult,_xlfn.SWITCH(E29, "In Millions", 1000000, "In Thousands", 1000, 1), E16/((_xlpm.mult*E34)/E15)) -> 27.66877863 | F43: =_xlfn.LET(_xlpm.mult,_xlfn.SWITCH(F29, "In Millions", 1000000, "In Thousands", 1000, 1), F16/((_xlpm.mult*F34)/F15)) -> 25.32007874
A44: Price / Book | B44: =B16/B49 -> 10.90257276 | C44: 10.58846993 | D44: 10.46081256 | E44: 7.804931094 | F44: 7.239081664
A45: Debt / Equity | B45: =B27/(B25-B27) -> 3.094274339 | C45: =C27/(C25-C27) -> 3.366460279 | D45: 3.631712073 | E45: 2.758397933 | F45: 2.496856078
A46: Current Ratio | B46: =B24/B26 -> 0.7567196826 | C46: =C24/C26 -> 0.866166354 | D46: 1.343862617 | E46: 1.281848334 | F46: 1.24006684
A47: Return on Equity | B47: =_xlfn.LET(_xlpm.ni,_xlfn.SWITCH(B29, "In Millions", 1000000, "In Thousands", 1000, 1), _xlpm.eq,_xlfn.SWITCH(B19, "In Millions", 1000000, "In Thousands", 1000, 1), (_xlpm.ni*B34)/((B25-B27)*_xlpm.eq)) -> 0.4258697507 | C47: =_xlfn.LET(_xlpm.ni,_xlfn.SWITCH(C29, "In Millions", 1000000, "In Thousands", 1000, 1), _xlpm.eq,_xlfn.SWITCH(C19, "In Millions", 1000000, "In Thousands", 1000, 1), (_xlpm.ni*C34)/((C25-C27)*_xlpm.eq)) -> 0.3398048064 | D47: =_xlfn.LET(_xlpm.ni,_xlfn.SWITCH(D29, "In Millions", 1000000, "In Thousands", 1000, 1), _xlpm.eq,_xlfn.SWITCH(D19, "In Millions", 1000000, "In Thousands", 1000, 1), (_xlpm.ni*D34)/((D25-D27)*_xlpm.eq)) -> 0.06760815724 | E47: =_xlfn.LET(_xlpm.ni,_xlfn.SWITCH(E29, "In Millions", 1000000, "In Thousands", 1000, 1), _xlpm.eq,_xlfn.SWITCH(E19, "In Millions", 1000000, "In Thousands", 1000, 1), (_xlpm.ni*E34)/((E25-E27)*_xlpm.eq)) -> 0.28208441 | F47: =_xlfn.LET(_xlpm.ni,_xlfn.SWITCH(F29, "In Millions", 1000000, "In Thousands", 1000, 1), _xlpm.eq,_xlfn.SWITCH(F19, "In Millions", 1000000, "In Thousands", 1000, 1), (_xlpm.ni*F34)/((F25-F27)*_xlpm.eq)) -> 0.2859028101
A48: Liquid Value / Share | B48: =_xlfn.LET(_xlpm.mult,_xlfn.SWITCH(B19, "In Millions", 1000000, "In Thousands", 1000, 1), (_xlpm.mult*B20+_xlpm.mult*B21)/B15) -> 2.250347705 | C48: =_xlfn.LET(_xlpm.mult,_xlfn.SWITCH(C19, "In Millions", 1000000, "In Thousands", 1000, 1), (_xlpm.mult*C20+_xlpm.mult*C21)/C15) -> 3.277506397 | D48: =_xlfn.LET(_xlpm.mult,_xlfn.SWITCH(D19, "In Millions", 1000000, "In Thousands", 1000, 1), (_xlpm.mult*D20+_xlpm.mult*D21)/D15) -> 2.618640148 | E48: =_xlfn.LET(_xlpm.mult,_xlfn.SWITCH(E19, "In Millions", 1000000, "In Thousands", 1000, 1), (_xlpm.mult*E20+_xlpm.mult*E21)/E15) -> 2.886649874 | F48: =_xlfn.LET(_xlpm.mult,_xlfn.SWITCH(F19, "In Millions", 1000000, "In Thousands", 1000, 1), (_xlpm.mult*F20+_xlpm.mult*F21)/F15) -> 2.628376844
A49: Book Value / Share | B49: =_xlfn.LET(_xlpm.mult,_xlfn.SWITCH(B19, "In Millions", 1000000, "In Thousands", 1000, 1),((B25-B27)*_xlpm.mult)/B15) -> 4.890588781 | C49: =_xlfn.LET(_xlpm.mult,_xlfn.SWITCH(C19, "In Millions", 1000000, "In Thousands", 1000, 1),((C25-C27)*_xlpm.mult)/C15) -> 4.433123982 | D49: =_xlfn.LET(_xlpm.mult,_xlfn.SWITCH(D19, "In Millions", 1000000, "In Thousands", 1000, 1),((D25-D27)*_xlpm.mult)/D15) -> 4.388760407 | E49: =_xlfn.LET(_xlpm.mult,_xlfn.SWITCH(E19, "In Millions", 1000000, "In Thousands", 1000, 1),((E25-E27)*_xlpm.mult)/E15) -> 5.317151362 | F49: =_xlfn.LET(_xlpm.mult,_xlfn.SWITCH(F19, "In Millions", 1000000, "In Thousands", 1000, 1),((F25-F27)*_xlpm.mult)/F15) -> 5.848808173
A50: Book Value Growth Y/Y | B50: =+(B49-C49)/C49 -> 0.1031924215 | C50: =+(C49-D49)/D49 -> 0.01010845231 | D50: =+(D49-E49)/E49 -> -0.1746030707 | E50: =+(E49-F49)/F49 -> -0.09090002516
A51: Interest / FCF | B51: =+B32/(B37-B38) -> 0.1123915885 | C51: 0.1562757032 | D51: 0.1612171612 | E51: 0.1121824304 | F51: 0.1073354232
A52: FCF Debt Coverage | B52: =(B37-B38)/B39 -> 0.3387122736 | C52: 0.1986601307 | D52: 0.1832634824 | E52: 0.2550849112 | F52: 0.2113254544
A53: Net-Net Value / Share | B53: =_xlfn.LET(_xlpm.mult,_xlfn.SWITCH(B19, "In Millions", 1000000, "In Thousands", 1000, 1), (_xlpm.mult*(B20+B21+B22*0.75+B23*0.5-B27))/B15) -> -11.8004752 | C53: =_xlfn.LET(_xlpm.mult,_xlfn.SWITCH(C19, "In Millions", 1000000, "In Thousands", 1000, 1), (_xlpm.mult*(C20+C21+C22*0.75+C23*0.5-C27))/C15) -> -10.64637125 | D53: =_xlfn.LET(_xlpm.mult,_xlfn.SWITCH(D19, "In Millions", 1000000, "In Thousands", 1000, 1), (_xlpm.mult*(D20+D21+D22*0.75+D23*0.5-D27))/D15) -> -12.37702359 | E53: =_xlfn.LET(_xlpm.mult,_xlfn.SWITCH(E19, "In Millions", 1000000, "In Thousands", 1000, 1), (_xlpm.mult*(E20+E21+E22*0.75+E23*0.5-E27))/E15) -> -10.8116556 | F53: =_xlfn.LET(_xlpm.mult,_xlfn.SWITCH(F19, "In Millions", 1000000, "In Thousands", 1000, 1), (_xlpm.mult*(F20+F21+F22*0.75+F23*0.5-F27))/F15) -> -10.97485812
A54: Graham IV / Share | B54: =B17*(8.5+(2*B57*100)) -> 30.015 | C54: 21.75 | D54: 4.205 | E54: 21.605 | F54: 24.215
A56: Assumptions
A57: Expected Growth | B57: 0.03 | C57: 0.03 | D57: 0.03 | E57: 0.03 | F57: 0.03
A59: Valuations
A60: Net-Net Valuation
A61: Cash + Securities | B61: =+B20+B21 -> 9708 | C61: =+C20+C21 -> 14090 | D61: =+D20+D21 -> 11323 | E61: =+E20+E21 -> 12606 | F61: =+F20+F21 -> 11578
A62: + AR (75%) | B62: =+B22*0.75 -> 2978.25 | C62: =+C22*0.75 -> 2763.75 | D62: =+D22*0.75 -> 2750.25 | E62: =+E22*0.75 -> 2892 | F62: =+F22*0.75 -> 2955.75
A63: + Inventory (50%) | B63: =+B23*0.5 -> 1689.5 | C63: =+C23*0.5 -> 1535.5 | D63: =+D23*0.5 -> 1327.5 | E63: =+E23*0.5 -> 1337.5 | F63: =+F23*0.5 -> 1451
A64: - Total Liabilities | B64: =-B27 -> -65283 | C64: =-C27 -> -64158 | D64: =-D27 -> -68919 | E64: =-E27 -> -64050 | F64: =-F27 -> -64329
A65: Net-Net Value | B65: =SUM(B61:B64) -> -50907.25 | C65: =SUM(C61:C64) -> -45768.75 | D65: =SUM(D61:D64) -> -53518.25 | E65: =SUM(E61:E64) -> -47214.5 | F65: -48344.25
A66: Net-Net / Share | B66: =_xlfn.LET(_xlpm.mult,_xlfn.SWITCH(B19, "In Millions", 1000000, "In Thousands", 1000, 1), (_xlpm.mult*B65)/B15) -> -11.8004752 | C66: =_xlfn.LET(_xlpm.mult,_xlfn.SWITCH(C19, "In Millions", 1000000, "In Thousands", 1000, 1), (_xlpm.mult*C65)/C15) -> -10.64637125 | D66: =_xlfn.LET(_xlpm.mult,_xlfn.SWITCH(D19, "In Millions", 1000000, "In Thousands", 1000, 1), (_xlpm.mult*D65)/D15) -> -12.37702359 | E66: =_xlfn.LET(_xlpm.mult,_xlfn.SWITCH(E19, "In Millions", 1000000, "In Thousands", 1000, 1), (_xlpm.mult*E65)/E15) -> -10.8116556 | F66: =_xlfn.LET(_xlpm.mult,_xlfn.SWITCH(F19, "In Millions", 1000000, "In Thousands", 1000, 1), (_xlpm.mult*F65)/F15) -> -10.97485812
A67: Market Price Delta | B67: =+B66-B16 -> -65.1204752 | C67: =+C66-C16 -> -57.58637125 | D67: =+D66-D16 -> -58.28702359 | E67: =+E66-E16 -> -52.3116556 | F67: =+F66-F16 -> -53.31485812
A69: Graham Intrinsic Value
A70: EPS | B70: =B17 -> 2.07
A71: Expected Growth Rate | B71: =+B57 -> 0.03
A72: IV / Share | B72: =B70*(8.5+(2*B71*100)) -> 30.015
A73: Market Price Delta | B73: =+B72-B8 -> -24.125
A75: DCF Analysis
A76: 10 Year Growth Rate | B76: =+B57 -> 0.03
A77: Terminal Growth Rate | B77: 0.01
A78: Discount Rate | B78: 0.1
A79: FCF / Share History | B79: =_xlfn.LET(_xlpm.mult,_xlfn.SWITCH(B36, "In Millions", 1000000, "In Thousands", 1000, 1), (_xlpm.mult*(B37-B38))/B15) -> 1.951089476 | C79: =_xlfn.LET(_xlpm.mult,_xlfn.SWITCH(C36, "In Millions", 1000000, "In Thousands", 1000, 1), (_xlpm.mult*(C37-C38))/C15) -> 1.414049779 | D79: =_xlfn.LET(_xlpm.mult,_xlfn.SWITCH(D36, "In Millions", 1000000, "In Thousands", 1000, 1), (_xlpm.mult*(D37-D38))/D15) -> 1.223635523 | E79: =_xlfn.LET(_xlpm.mult,_xlfn.SWITCH(E36, "In Millions", 1000000, "In Thousands", 1000, 1), (_xlpm.mult*(E37-E38))/E15) -> 1.496221662 | F79: =_xlfn.LET(_xlpm.mult,_xlfn.SWITCH(F36, "In Millions", 1000000, "In Thousands", 1000, 1), (_xlpm.mult*(F37-F38))/F15) -> 1.810442679
A80: FCF Growth Rate | B80: =(B79-C79)/C79 -> 0.3797883958 | C80: 0.1556135408 | D80: -0.1821829924 | E80: =(E79-F79)/F79 -> -0.1735603231
A81: Prior Year FCF | B81: =+B37-B38 -> 8417 | C81: =B36 -> In Millions
A83: Year | B83: Cash Flow | C83: Discounted
A84: 1 | B84: =(B81*(1+$B$76)) -> 8669.51 | C84: =B84/((1+$B$78)^A84) -> 7881.372727
A85: =+A84+1 -> 2 | B85: =(B84*(1+$B$76)) -> 8929.5953 | C85: =B85/((1+$B$78)^A85) -> 7379.830826
A86: =+A85+1 -> 3 | B86: =(B85*(1+$B$76)) -> 9197.483159 | C86: 6910.205228
A87: =+A86+1 -> 4 | B87: 9473.407654 | C87: 6470.464896
A88: 5 | B88: 9757.609883 | C88: 6058.708039
A89: 6 | B89: 10050.33818 | C89: 5673.153891
A90: 7 | B90: 10351.84833 | C90: 5312.135007
A91: 8 | B91: 10662.40378 | C91: 4974.090052
A92: 9 | B92: 10982.27589 | C92: 4657.557049
A93: 10 | B93: 11311.74416 | C93: 4361.167055
A94: Terminal Cash Flow | C94: =(B93*(1+$B$77))/(B78-B77) -> 126942.9067
A96: Terminal Value | C96: =SUM(C84:C95) -> 186621.5915
A97: Value / Share | B97: =_xlfn.LET(_xlpm.mult,_xlfn.SWITCH(C81, "In Millions", 1000000, "In Thousands", 1000, 1), (_xlpm.mult*C96)/B15) -> 43.25952515

Sheet Dividends
A1: Close* | B1: Date
A2: 0.41 | B2: 2020-11-30
A3: 0.41 | B3: 2020-09-14
A4: 0.41 | B4: 2020-06-12
A5: 0.41 | B5: 2020-03-13
A6: 0.4 | B6: 2019-11-29
A7: 0.4 | B7: 2019-09-13
A8: 0.4 | B8: 2019-06-13
A9: 0.4 | B9: 2019-03-14
A10: 0.39 | B10: 2018-11-29
A11: 0.39 | B11: 2018-09-13
A12: 0.39 | B12: 2018-06-14
A13: 0.39 | B13: 2018-03-14
A14: 0.37 | B14: 2017-11-30
A15: 0.37 | B15: 2017-09-14
A16: 0.37 | B16: 2017-06-13
A17: 0.37 | B17: 2017-03-13
A18: 0.35 | B18: 2016-11-29
A19: 0.35 | B19: 2016-09-13
A20: 0.35 | B20: 2016-06-13
A21: 0.35 | B21: 2016-03-11
A22: 0.33 | B22: 2015-11-27
A23: 0.33 | B23: 2015-09-11
A24: 0.33 | B24: 2015-06-11
A25: 0.33 | B25: 2015-03-12
A26: 0.305 | B26: 2014-11-26

Sheet StockPrices
A1: Open | B1: Close* | C1: Date
A2: 50.03 | B2: 51.08 | C2: 2021-01-08
A3: 54.27 | B3: 51.08 | C3: 2021-01-01
A4: 52.14 | B4: 54.84 | C4: 2020-12-01
A5: 48.75 | B5: 51.60 | C5: 2020-10-31
A6: 49.44 | B6: 48.06 | C6: 2020-09-30
A7: 49.31 | B7: 49.37 | C7: 2020-08-31
A8: 47.14 | B8: 49.53 | C8: 2020-07-31
A9: 44.93 | B9: 47.24 | C9: 2020-06-30
A10: 46.66 | B10: 44.68 | C10: 2020-05-31
A11: 45.62 | B11: 46.68 | C11: 2020-04-30
A12: 42.48 | B12: 45.89 | C12: 2020-03-31
A13: 53.93 | B13: 44.25 | C13: 2020-03-01
A14: 58.75 | B14: 53.49 | C14: 2020-02-01
A15: 55.32 | B15: 58.40 | C15: 2020-01-01
A16: 53.32 | B16: 55.35 | C16: 2019-12-01
A17: 54.63 | B17: 53.40 | C17: 2019-10-31
A18: 54.53 | B18: 54.43 | C18: 2019-09-30
A19: 54.98 | B19: 54.44 | C19: 2019-08-31
A20: 52.78 | B20: 55.04 | C20: 2019-07-31
A21: 51.07 | B21: 52.63 | C21: 2019-06-30
A22: 49.16 | B22: 50.92 | C22: 2019-05-31
A23: 48.95 | B23: 49.13 | C23: 2019-04-30
A24: 46.99 | B24: 49.06 | C24: 2019-03-31
A25: 45.47 | B25: 46.86 | C25: 2019-03-01
A26: 48.48 | B26: 45.34 | C26: 2019-02-01
A27: 46.94 | B27: 48.13 | C27: 2019-01-01
A28: 49.87 | B28: 47.35 | C28: 2018-12-01
A29: 47.81 | B29: 50.40 | C29: 2018-10-31
A30: 46.17 | B30: 47.88 | C30: 2018-09-30
A31: 44.60 | B31: 46.19 | C31: 2018-08-31
A32: 46.45 | B32: 44.57 | C32: 2018-07-31
A33: 43.78 | B33: 46.63 | C33: 2018-06-30
A34: 43.10 | B34: 43.86 | C34: 2018-05-31
A35: 42.96 | B35: 43.00 | C35: 2018-04-30
A36: 43.44 | B36: 43.21 | C36: 2018-03-31
A37: 43.10 | B37: 43.43 | C37: 2018-03-01
A38: 47.41 | B38: 43.22 | C38: 2018-02-01
A39: 45.91 | B39: 47.59 | C39: 2018-01-01
A40: 45.80 | B40: 45.88 | C40: 2017-12-01
A41: 45.75 | B41: 45.77 | C41: 2017-10-31
A42: 45.05 | B42: 45.98 | C42: 2017-09-30
A43: 45.64 | B43: 45.01 | C43: 2017-08-31
A44: 45.97 | B44: 45.55 | C44: 2017-07-31
A45: 45.11 | B45: 45.84 | C45: 2017-06-30
A46: 45.45 | B46: 44.85 | C46: 2017-05-31
A47: 43.15 | B47: 45.47 | C47: 2017-04-30
A48: 42.58 | B48: 43.15 | C48: 2017-03-31
A49: 42.01 | B49: 42.44 | C49: 2017-03-01
A50: 41.52 | B50: 41.96 | C50: 2017-02-01
A51: 41.50 | B51: 41.57 | C51: 2017-01-01
A52: 40.31 | B52: 41.46 | C52: 2016-12-01
A53: 42.40 | B53: 40.35 | C53: 2016-10-31
A54: 42.31 | B54: 42.40 | C54: 2016-09-30
A55: 43.21 | B55: 42.32 | C55: 2016-08-31
A56: 43.69 | B56: 43.43 | C56: 2016-07-31
A57: 45.33 | B57: 43.63 | C57: 2016-06-30
A58: 44.60 | B58: 45.33 | C58: 2016-05-31
A59: 44.57 | B59: 44.60 | C59: 2016-04-30
A60: 46.14 | B60: 44.80 | C60: 2016-03-31
A61: 43.38 | B61: 46.39 | C61: 2016-03-01
A62: 42.60 | B62: 43.13 | C62: 2016-02-01
A63: 42.34 | B63: 42.92 | C63: 2016-01-01
A64: 42.73 | B64: 42.96 | C64: 2015-12-01
A65: 42.32 | B65: 42.62 | C65: 2015-10-31
A66: 40.22 | B66: 42.35 | C66: 2015-09-30
A67: 38.67 | B67: 40.12 | C67: 2015-08-31
A68: 40.85 | B68: 39.32 | C68: 2015-07-31
A69: 39.38 | B69: 41.08 | C69: 2015-06-30
A70: 41.36 | B70: 39.23 | C70: 2015-05-31
A71: 40.58 | B71: 40.96 | C71: 2015-04-30
A72: 40.79 | B72: 40.56 | C72: 2015-03-31
A73: 43.30 | B73: 40.55 | C73: 2015-03-01
A74: 41.21 | B74: 43.30 | C74: 2015-02-01
A75: 42.26 | B75: 41.17 | C75: 2015-01-01
A76: 44.18 | B76: 42.22 | C76: 2014-12-01

Sheet Lists (hidden)
A1: Denominations
A2: In Dollars
A3: In Thousands
A4: In Millions
